fUST/lending_fUST_20250912
["ID","MTS","AMOUNT","RATE_DAILY","PERIOD"]
[385203221,1757684786046,-1888.0,0.00038879,30]
[385203222,1757684786070,-1957.856,0.00038879,30]
[385203223,1757684786094,-151.29603326,0.00038899,120]
[385203224,1757684786118,-151.0,0.00038899,120]
[385203225,1757684786142,-500.0,0.00038899,120]
[385203226,1757684786166,-17300.0,0.00038899,120]
[385203227,1757684786191,-151.0,0.00038899,120]
[385203228,1757684786215,-151.0,0.00038899,120]
[385203229,1757684786240,-151.0,0.00038899,120]
[385203230,1757684786266,-500.0,0.00038899,120]
[385203231,1757684786290,-17940.1,0.00038899,120]
[385203232,1757684786315,-151.0,0.00038899,120]
[385203233,1757684786339,-156.587,0.00038899,120]
[385203234,1757684786364,-18603.8837,0.00038899,120]
[385203235,1757684786390,-151.0,0.00038899,120]
[385203236,1757684786414,-151.0,0.00038899,120]
[385203237,1757684786441,-19292.2273969,0.00038899,120]
[385203238,1757684786591,-151.0,0.00038899,120]
[385203239,1757684786616,-162.380719,0.00038899,120]
[385203240,1757684786642,-151.0,0.00038899,120]
[385203241,1757684786668,-151.0,0.00038899,120]
[385203242,1757684786694,-14124.02618849,0.00038899,120]
[385203243,1757684786727,-217.38167397,0.00038899,120]
[385203244,1757684786752,-151.0,0.00038899,120]
[385203245,1757684786778,-250.0,0.00038899,120]
[385203246,1757684786802,-151.0,0.00038899,120]
[385203247,1757684786828,-151.0,0.00038899,120]
[385203248,1757684786853,-151.0,0.00038899,120]
[385203249,1757684786878,-151.0,0.00038899,120]
[385203250,1757684786904,-250.0,0.00038899,120]
[385203251,1757684786930,-151.0,0.00038899,120]
[385203252,1757684786955,-151.0,0.00038899,120]
[385203253,1757684786982,-250.0,0.00038899,120]
[385203254,1757684787008,-151.0,0.00038899,120]
[385203255,1757684787034,-151.0,0.00038899,120]
[385203256,1757684787059,-151.0,0.00038899,120]
[385203257,1757684787083,-151.0,0.00038899,120]
[385203258,1757684787107,-151.0,0.00038899,120]
[385203259,1757684787132,-151.0,0.00038899,120]
[385203260,1757684787156,-151.0,0.00038899,120]
[385203261,1757684787180,-151.0,0.00038899,120]
[385203262,1757684787206,-151.0,0.00038899,120]
[385203263,1757684787230,-151.0,0.00038899,120]
[385203264,1757684787254,-151.0,0.00038899,120]
[385203265,1757684787282,-151.0,0.00038899,120]
[385203266,1757684787307,-151.0,0.00038899,120]
[385203267,1757684787333,-151.0,0.00038899,120]
[385203268,1757684787358,-500.0,0.00038899,120]
[385203269,1757684787383,-151.0,0.00038899,120]
[385203270,1757684787407,-151.0,0.00038899,120]
[385203271,1757684787433,-500.0,0.00038899,120]
[385203272,1757684787459,-151.0,0.00038899,120]
[385203273,1757684787488,-151.0,0.00038899,120]
[385203274,1757684787513,-151.0,0.00038899,120]
[385203275,1757684787538,-151.0,0.00038899,120]
[385203276,1757684787563,-151.0,0.00038899,120]
[385203277,1757684787589,-192899.23358483,0.000389,120]
[385203278,1757684787615,-1324.91871614,0.000389,120]
[385203279,1757684787640,-8290.97312551,0.00039,120]
[385203280,1757684787665,-8076.31431821,0.00039,30]
[385203281,1757684787689,-2673.45,0.00039,30]
[385203282,1757684787714,-151.0,0.0003944,30]
[385203283,1757684787739,-444.35316,0.0003944,30]
[385203284,1757684787765,-444.35316,0.0003944,30]
[385203285,1757684787791,-444.35316,0.0003944,30]
[385203286,1757684787816,-444.353159,0.0003944,30]
[385203287,1757684787842,-151.0,0.0003944,30]
[385203288,1757684787867,-151.0,0.0003944,30]
[385203289,1757684787891,-151.0,0.0003944,30]
[385203290,1757684787917,-188.75,0.0003944,30]
[385203291,1757684787942,-188.75,0.0003944,30]
[385203292,1757684787966,-188.75,0.0003944,30]
[385203293,1757684787991,-188.75,0.0003944,30]
[385203294,1757684788016,-224.46938293,0.000395,120]
[385203295,1757684788042,-1019.89,0.00039726,120]
[385203296,1757684788067,-382.77516536,0.000398,120]
[385203297,1757684788090,-815.09,0.000398,120]
[385203298,1757684788117,-1000.0,0.00039861,30]
[385203299,1757684788142,-1000.0,0.00039861,30]
[385203300,1757684788169,-1000.0,0.00039861,30]
[385203301,1757684788194,-200.0,0.0003994,120]
[385203302,1757684788219,-300.0,0.0004,120]
[385203303,1757684788244,-2000.0,0.0004,120]
[385203304,1757684788268,-605.7178956,0.0004,120]
[385203305,1757684788293,-160.0,0.0004,120]
[385203306,1757684788317,-110985.62415126,0.0004,120]
[385203307,1757684788341,-160.0,0.0004,120]
[385203308,1757684788365,-500.0,0.0004,120]
[385203309,1757684788389,-500.0,0.0004,120]
[385203310,1757684788414,-500.0,0.0004,120]
[385203311,1757684788438,-501.0,0.0004,120]
[385203312,1757684788465,-39465.7455992,0.0004,120]
[385203313,1757684788492,-1374.91670044,0.0004,120]
[385203314,1757684788516,-220.88226363,0.0004,30]
[385203315,1757684788543,-4000.0,0.0004,120]
[385203316,1757684788567,-1118.49046868,0.0004,30]
[385203317,1757684788591,-100000.0,0.0004,30]
[385203318,1757684788616,-1346.09449945,0.0004,120]
[385203319,1757684788641,-89702.54352467,0.0004,120]
[385203320,1757684788666,-2359.8222642,0.0004,120]
[385203321,1757684788692,-151.42259893,0.0004,60]
[385203322,1757684788716,-1042366.15017552,0.0004,120]
[385203323,1757684788741,-449.44474474,0.0004,120]
[385203324,1757684788870,-160.0,0.0004,120]
[385203325,1757684788897,-233.13074058,0.0004,120]
[385203326,1757684788922,-233.13074058,0.0004,30]
[385203327,1757684788947,-391.36212905,0.00040193,120]
[385203328,1757684788971,-155.0,0.000402,120]
[385203329,1757684788996,-150.0,0.00041,120]
[385203330,1757684789022,-1566.04,0.00041096,120]
[385203331,1757684789046,-2000.0,0.000415,120]
[385203332,1757684789071,-155.0,0.000417,120]
[385203333,1757684789094,-500.0,0.0004188,30]
[385203334,1757684789118,-500.0,0.0004188,60]
[385203335,1757684789143,-2000.0,0.000419,120]
[385203336,1757684789167,-300.0,0.00042,120]
[385203337,1757684789190,-64264.58829852,0.00042,30]
[385203338,1757684789215,-1779.1362857,0.000424,120]
[385203339,1757684789241,-1019.89,0.00042465,120]
[385203340,1757684789267,-10308.60499948,0.000428,30]
[385203341,1757684789291,-500.0,0.00042947,30]
[385203342,1757684789316,-500.0,0.00042947,30]
[385203343,1757684789341,-278.46635397,0.00043,120]
[385203344,1757684789366,-1129.06077997,0.00043,120]
[385203345,1757684789391,-5000.0,0.00043,120]
[385203346,1757684789414,-600000.0,0.00043,120]
[385203347,1757684789439,-155.0,0.000431,120]
[385203348,1757684789468,-2000.0,0.000435,120]
[385203349,1757684789494,-1000.0,0.000438,90]
[385203350,1757684789520,-1000.0,0.000438,90]
[385203351,1757684789545,-1000.0,0.000438,90]
[385203352,1757684789569,-1000.0,0.000438,90]
[385203353,1757684789595,-3707.72,0.00043835,120]
[385203354,1757684789620,-1120.45,0.00043835,120]
[385203355,1757684789646,-500.0,0.00043835,120]
[385203356,1757684789671,-500.0,0.0004398,60]
[385203357,1757684789697,-400.0,0.00044,120]
[385203358,1757684789724,-300.0,0.00044,120]
[385203359,1757684789749,-2494.55222387,0.00044,120]
[385203360,1757684789775,-3707.72,0.00044109,120]
[385203361,1757684789800,-1120.45,0.00044109,120]
[385203362,1757684789826,-500.0,0.00044109,120]
[385203363,1757684789852,-3707.72,0.00044383,120]
[385203364,1757684789879,-1120.45,0.00044383,120]
[385203365,1757684789904,-500.0,0.00044383,120]
[385203366,1757684789928,-2000.0,0.000445,120]
[385203367,1757684789952,-2000.0,0.000445,120]
[385203368,1757684789977,-155.0,0.000446,120]
[385203369,1757684790000,-500.0,0.00044649,30]
[385203370,1757684790025,-3707.72,0.00044657,120]
[385203371,1757684790051,-1120.45,0.00044657,120]
[385203372,1757684790075,-180.18818114,0.00044657,120]
[385203373,1757684790098,-500.0,0.0004488,60]
[385203374,1757684790122,-615.81,0.00044887,60]
[385203375,1757684790145,-538.00727637,0.000449,120]
[385203376,1757684790170,-3707.72,0.00044931,120]
[385203377,1757684790200,-1120.45,0.00044931,120]
[385203378,1757684790227,-1395.2251832,0.00044989,68]
[385203379,1757684790253,-1000.0,0.00044999,120]
[385203380,1757684790278,-1000.0,0.00045,30]
[385203381,1757684790303,-1000.0,0.00045,120]
[385203382,1757684790327,-2359.44391289,0.00045,120]
[385203383,1757684790351,-20000.0,0.00045,35]
[385203384,1757684790375,-448.0,0.00045,120]
[385203385,1757684790399,-100807.64896412,0.00045,30]
[385203386,1757684790423,-2036.32528238,0.00045,120]
[385203387,1757684790449,-5579.26381943,0.00045,120]
[385203388,1757684790476,-163.5939787,0.00045,120]
[385203389,1757684790501,-5385.7489135,0.00045,120]
[385203390,1757684790527,-176.327,0.00045043,72]
[385203391,1757684790552,-10300.0,0.000451,120]
[385203392,1757684790579,-3707.72,0.00045205,120]
[385203393,1757684790605,-1120.45,0.00045205,120]
[385203394,1757684790630,-1019.89,0.00045205,120]
[385203395,1757684790656,-3707.72,0.00045479,120]
[385203396,1757684790682,-1120.45,0.00045479,120]
[385203397,1757684790708,-3707.72,0.00045753,120]
[385203398,1757684790734,-1120.45,0.00045753,120]
[385203399,1757684790759,-500.0,0.0004578,30]
[385203400,1757684790783,-1000.0,0.00045999,120]
[385203401,1757684790807,-11726.72784263,0.00045999,120]
[385203402,1757684790832,-300.0,0.00046,120]
[385203403,1757684790858,-1000.0,0.00046,120]
[385203404,1757684790882,-372.51245641,0.00046,120]
[385203405,1757684790907,-3707.72,0.00046027,120]
[385203406,1757684790931,-1120.45,0.00046027,120]
[385203407,1757684790955,-155.0,0.000461,120]
[385203408,1757684790978,-3789.2429154,0.0004625,58]
[385203409,1757684791003,-3707.72,0.00046301,120]
[385203410,1757684791027,-1120.45,0.00046301,120]
[385203411,1757684791156,-20000.0,0.000465,30]
[385203412,1757684791184,-2000.0,0.000465,120]
[385203413,1757684791210,-3707.72,0.00046575,120]
[385203414,1757684791237,-1120.45,0.00046575,120]
[385203415,1757684793090,205.932548,0.000389,30]
[385203416,1757684797782,211.820753,0.000389,30]
[385203417,1757684799353,151.0,0.000389,30]
[385203418,1757684799922,263.323274,0.00028767,60]
[385203419,1757684800888,151.0,0.000389,30]
[385203420,1757684800997,3000.0,0.00042442,60]
[385203421,1757684802477,151.0,0.000389,30]
[385203422,1757684813270,-331.81,0.00028555,30]
[385203423,1757684813305,-160.0,0.00029,30]
[385203424,1757684813342,-3000.0,0.00043538,60]
[385203425,1757684813367,-3000.0,0.00044634,60]
[385203426,1757684813392,-3000.0,0.0004573,60]
[385203427,1757684813417,-3707.72,0.00046849,120]
[385203428,1757684813443,-1120.45,0.00046849,120]
[385203429,1757684813469,-150.0,0.00047,120]
[385203430,1757684813501,-1000.0,0.00047,120]
[385203431,1757684813526,-20000.0,0.00047,30]
[385203432,1757684813552,-5000.0,0.00047,120]
[385203433,1757684813577,-3707.72,0.00047123,120]
[385203434,1757684813603,-1120.45,0.00047123,120]
[385203435,1757684813629,-3707.72,0.00047397,120]
[385203436,1757684813656,-1120.45,0.00047397,120]
[385203437,1757684813681,-502296.0,0.0004744,30]
[385203438,1757684813706,-155.0,0.000476,120]
[385203439,1757684813733,-3707.72,0.00047671,120]
[385203440,1757684813758,-1120.45,0.00047671,120]
[385203441,1757684813783,-255.40425,0.00047866,120]
[385203442,1757684813807,-2000.0,0.000479,120]
[385203443,1757684813832,-3707.72,0.00047945,120]
[385203444,1757684813858,-1120.45,0.00047945,120]
[385203445,1757684813884,-1019.89,0.00047945,120]
[385203446,1757684814017,-1000.0,0.00047999,120]
[385203447,1757684814044,-300.0,0.00048,120]
[385203448,1757684814069,-5840.1926523,0.00048,120]
[385203449,1757684814096,-1000.0,0.00048,120]
[385203450,1757684814120,-1020.4225455,0.00048,120]
[385203451,1757684814144,-1056.5,0.00048,60]
[385203452,1757684814169,-3707.72,0.00048219,120]
[385203453,1757684814194,-1120.45,0.00048219,120]
[385203454,1757684814219,-800000.0,0.0004844,30]
[385203455,1757684814245,-3707.72,0.00048493,120]
[385203456,1757684814271,-1120.45,0.00048493,120]
[385203457,1757684814295,-2000.0,0.000485,120]
[385203458,1757684814319,-20000.0,0.000486,120]
[385203459,1757684814344,-20000.0,0.000486,120]
[385203460,1757684814370,-3707.72,0.00048767,120]
[385203461,1757684814395,-1120.45,0.00048767,120]
[385203462,1757684814420,-1000.0,0.00048999,120]
[385203463,1757684814445,-299.318726,0.00049,120]
[385203464,1757684814473,-1000.0,0.00049,120]
[385203465,1757684814499,-155.0,0.00049,120]
[385203466,1757684814524,-3707.72,0.00049041,120]
[385203467,1757684814549,-1120.45,0.00049041,120]
[385203468,1757684814574,-3707.72,0.00049315,120]
[385203469,1757684814600,-1120.45,0.00049315,120]
[385203470,1757684814624,-2000.0,0.000495,120]
[385203471,1757684814649,-512.0,0.0004952,120]
[385203472,1757684814674,-3707.72,0.00049589,120]
[385203473,1757684814699,-1120.45,0.00049589,120]
[385203474,1757684814724,-3707.72,0.00049863,120]
[385203475,1757684814749,-1120.45,0.00049863,120]
[385203476,1757684814774,-1000.0,0.00049999,120]
[385203477,1757684814798,-156000.0,0.0005,120]
[385203478,1757684814823,-300.0,0.0005,120]
[385203479,1757684814849,-1000.0,0.0005,120]
[385203480,1757684814874,-2359.35412728,0.0005,120]
[385203481,1757684814898,-100000.0,0.0005,30]
[385203482,1757684814923,-8745.95271943,0.0005,120]
[385203483,1757684814949,-449.45253022,0.0005,120]
[385203484,1757684814974,-2748.51,0.0005,120]
[385203485,1757684814999,-301.8593737,0.0005,120]
[385203486,1757684815024,-17000.0,0.0005,90]
[385203487,1757684815048,-1301.07506384,0.0005,120]
[385203488,1757684815072,-840.0075315,0.0005,120]
[385203489,1757684815097,-390.15304601,0.0005,30]
[385203490,1757684815121,-1177.47225211,0.0005,120]
[385203491,1757684815144,-2673.45,0.0005,30]
[385203492,1757684815169,-3707.89369976,0.00050136,120]
[385203493,1757684815194,-1120.54484407,0.00050136,120]
[385203494,1757684815219,-500000.0,0.0005044,30]
[385203495,1757684815243,-155.0,0.000505,120]
[385203496,1757684815268,-321128.55605489,0.00050597,120]
[385203497,1757684815293,-1019.89,0.00050684,120]
[385203498,1757684815317,-1000.0,0.00050999,120]
[385203499,1757684815341,-151.3107036,0.00051,120]
[385203500,1757684815366,-1000.0,0.00051,120]
[385203501,1757684815391,-3000.0,0.00051,85]
[385203502,1757684815416,-3000.0,0.0005101,85]
[385203503,1757684815440,-3000.0,0.0005102,85]
[385203504,1757684815467,-3000.0,0.0005103,85]
[385203505,1757684815496,-3000.0,0.0005104,85]
[385203506,1757684815522,-3000.0,0.0005105,85]
[385203507,1757684815547,-3000.0,0.0005106,85]
[385203508,1757684815573,-3000.0,0.0005107,85]
[385203509,1757684815597,-3226.236598,0.0005108,85]
[385203510,1757684815622,-390713.70328179,0.0005111,30]
[385203516,1757684844352,-8000022.0,0.00028555,20]
[385203518,1757684871417,1361.7331812,0.000135,2]
[385203520,1757684907080,151.0,0.00024,120]
[385203521,1757684908483,151.0,0.000258,120]
[385203522,1757684940741,6905.567797,0.000135,2]
[385203695,1757685035880,1393.70809,0.00027,120]
[385203719,1757685038000,-300.0,0.00013596,2]
[385203720,1757685038009,-1011.0,0.00013596,2]
[385203721,1757685038019,-1200.0,0.00013597,2]
[385203722,1757685038028,-298.01639835,0.00013597,2]
[385203725,1757685038037,-236.12931814,0.00013597,2]
[385203727,1757685038046,-208.65314018,0.00013597,2]
[385203730,1757685038055,-378.58896965,0.00013597,2]
[385203732,1757685038064,-323436.33658989,0.00013598,2]
[385203735,1757685038073,-151.0,0.000136,2]
[385203738,1757685038083,-500.82849927,0.00013673,2]
[385203740,1757685038092,-500.0,0.00013673,2]
[385203742,1757685038101,-500.0,0.00013673,2]
[385203744,1757685038110,-500.2014928,0.00013673,2]
[385203747,1757685038119,-500.0,0.00013673,2]
[385203749,1757685038128,-501.07470523,0.00013673,2]
[385203751,1757685038137,-500.0,0.00013673,2]
[385203753,1757685038146,-500.0,0.00013673,2]
[385203755,1757685038155,-500.0,0.00013673,2]
[385203756,1757685038164,-201.84366764,0.00013673,2]
[385203758,1757685038174,-500.0,0.00013673,2]
[385203760,1757685038183,-500.0,0.00013673,2]
[385203762,1757685038193,-500.0,0.00013673,2]
[385203764,1757685038203,-500.0,0.00013673,2]
[385203767,1757685038212,-500.0,0.00013673,2]
[385203769,1757685038221,-500.0,0.00013673,2]
[385203771,1757685038230,-500.0,0.00013673,2]
[385203773,1757685038239,-500.0,0.00013673,2]
[385203775,1757685038248,-500.0,0.00013673,2]
[385203777,1757685038257,-444.44085401,0.00013673,2]
[385203778,1757685038266,-480.0,0.00013698,2]
[385203780,1757685038276,-480.0,0.00013698,2]
[385203781,1757685038286,-480.0,0.00013698,2]
[385203782,1757685038295,-480.0,0.00013698,2]
[385203783,1757685038304,-480.0,0.00013698,2]
[385203784,1757685038313,-480.0,0.00013698,2]
[385203785,1757685038322,-480.0,0.00013698,2]
[385203786,1757685038331,-480.0,0.00013698,2]
[385203787,1757685038341,-186.78663861,0.00013698,2]
[385203788,1757685038350,-480.0,0.00013698,2]
[385203789,1757685038361,-480.0,0.00013698,2]
[385203790,1757685038370,-480.0,0.00013698,2]
[385203791,1757685038379,-268.92730588,0.00013698,2]
[385203792,1757685038389,-490.30707561,0.00013698,2]
[385203793,1757685038398,-480.0,0.00013698,2]
[385203794,1757685038407,-193.25019922,0.00013698,2]
[385203795,1757685038416,-480.0,0.00013698,2]
[385203797,1757685038427,-471.38287497,0.00013698,2]
[385203799,1757685038436,-480.0,0.00013698,2]
[385203801,1757685038448,-480.0,0.00013698,2]
[385203803,1757685038458,-480.0,0.00013698,2]
[385203805,1757685038467,-480.0,0.00013698,2]
[385203820,1757685038601,-480.0,0.00013698,2]
[385203822,1757685038611,-480.0,0.00013698,2]
[385203825,1757685038621,-480.0,0.00013698,2]
[385203827,1757685038631,-480.0,0.00013698,2]
[385203829,1757685038640,-337.16326598,0.00013698,2]
[385203830,1757685038649,-480.0,0.00013698,2]
[385203832,1757685038658,-480.0,0.00013698,2]
[385203835,1757685038667,-480.0,0.00013698,2]
[385203836,1757685038679,-480.0,0.00013698,2]
[385203838,1757685038688,-480.0,0.00013698,2]
[385203841,1757685038698,-480.0,0.00013698,2]
[385203842,1757685038706,-480.0,0.00013698,2]
[385203845,1757685038716,-480.0,0.00013698,2]
[385203847,1757685038725,-480.0,0.00013698,2]
[385203849,1757685038735,-480.0,0.00013698,2]
[385203851,1757685038744,-506.21926031,0.00013698,2]
[385203852,1757685038754,-480.0,0.00013698,2]
[385203855,1757685038764,-480.0,0.00013698,2]
[385203857,1757685038774,-480.0,0.00013698,2]
[385203858,1757685038783,-480.0,0.00013698,2]
[385203860,1757685038792,-480.0,0.00013698,2]
[385203862,1757685038801,-480.0,0.00013698,2]
[385203864,1757685038810,-480.0,0.00013698,2]
[385203866,1757685038819,-480.0,0.00013698,2]
[385203868,1757685038828,-480.0,0.00013698,2]
[385203870,1757685038837,-480.0,0.00013698,2]
[385203872,1757685038846,-486.07950589,0.00013698,2]
[385203874,1757685038856,-480.0,0.00013698,2]
[385203876,1757685038865,-482.8578257,0.00013698,2]
[385203879,1757685038875,-490.29221846,0.00013698,2]
[385203880,1757685038884,-480.0,0.00013698,2]
[385203883,1757685038893,-402.7142657,0.00013698,2]
[385203885,1757685038903,-480.0,0.00013698,2]
[385203887,1757685038911,-485.94920962,0.00013698,2]
[385203889,1757685038921,-480.0,0.00013698,2]
[385203891,1757685038931,-480.0,0.00013698,2]
[385203893,1757685038940,-480.0,0.00013698,2]
[385203895,1757685038949,-480.0,0.00013698,2]
[385203897,1757685038958,-480.0,0.00013698,2]
[385203899,1757685038967,-480.0,0.00013698,2]
[385203900,1757685038980,-480.0,0.00013698,2]
[385203902,1757685038989,-480.0,0.00013698,2]
[385203905,1757685038999,-480.0,0.00013698,2]
[385203907,1757685039007,-480.0,0.00013698,2]
[385203909,1757685039017,-480.0,0.00013698,2]
[385203911,1757685039026,-480.0,0.00013698,2]
[385203913,1757685039034,-480.0,0.00013698,2]
[385203914,1757685039044,-480.0,0.00013698,2]
[385203916,1757685039053,-480.0,0.00013698,2]
[385203918,1757685039062,-480.0,0.00013698,2]
[385203920,1757685039072,-480.0,0.00013698,2]
[385203923,1757685039082,-480.0,0.00013698,2]
[385203924,1757685039092,-480.0,0.00013698,2]
[385203927,1757685039102,-480.0,0.00013698,2]
[385203929,1757685039111,-480.0,0.00013698,2]
[385203930,1757685039120,-480.0,0.00013698,2]
[385203932,1757685039129,-480.0,0.00013698,2]
[385203934,1757685039138,-480.0,0.00013698,2]
[385203936,1757685039147,-480.0,0.00013698,2]
[385203938,1757685039156,-480.0,0.00013698,2]
[385203940,1757685039165,-480.0,0.00013698,2]
[385203942,1757685039176,-480.0,0.00013698,2]
[385203945,1757685039185,-480.0,0.00013698,2]
[385203946,1757685039194,-480.0,0.00013698,2]
[385203949,1757685039203,-480.0,0.00013698,2]
[385203951,1757685039213,-480.0,0.00013698,2]
[385203952,1757685039222,-388.52995406,0.00013698,2]
[385203954,1757685039231,-480.0,0.00013698,2]
[385203956,1757685039241,-480.0,0.00013698,2]
[385203959,1757685039250,-480.0,0.00013698,2]
[385203961,1757685039260,-480.0,0.00013698,2]
[385203962,1757685039270,-480.0,0.00013698,2]
[385203964,1757685039279,-480.0,0.00013698,2]
[385203967,1757685039288,-480.0,0.00013698,2]
[385203969,1757685039298,-480.0,0.00013698,2]
[385203970,1757685039307,-480.0,0.00013698,2]
[385203972,1757685039317,-480.0,0.00013698,2]
[385203975,1757685039327,-480.0,0.00013698,2]
[385203977,1757685039338,-480.0,0.00013698,2]
[385203979,1757685039347,-480.0,0.00013698,2]
[385203980,1757685039357,-480.0,0.00013698,2]
[385203982,1757685039366,-480.0,0.00013698,2]
[385203984,1757685039376,-480.0,0.00013698,2]
[385203987,1757685039385,-480.0,0.00013698,2]
[385203989,1757685039394,-480.0,0.00013698,2]
[385203991,1757685039404,-480.0,0.00013698,2]
[385203992,1757685039413,-480.0,0.00013698,2]
[385203994,1757685039425,-480.0,0.00013698,2]
[385203996,1757685039434,-276.3920233,0.00013698,2]
[385203998,1757685039444,-480.0,0.00013698,2]
[385204000,1757685039453,-480.0,0.00013698,2]
[385204003,1757685039464,-480.0,0.00013698,2]
[385204004,1757685039474,-480.0,0.00013698,2]
[385204007,1757685039484,-480.0,0.00013698,2]
[385204010,1757685039494,-480.0,0.00013698,2]
[385204013,1757685039503,-480.0,0.00013698,2]
[385204016,1757685039513,-480.0,0.00013698,2]
[385204019,1757685039523,-480.0,0.00013698,2]
[385204022,1757685039532,-480.0,0.00013698,2]
[385204026,1757685039544,-480.0,0.00013698,2]
[385204028,1757685039555,-480.0,0.00013698,2]
[385204032,1757685039565,-480.0,0.00013698,2]
[385204035,1757685039575,-413.92213104,0.00013698,2]
[385204038,1757685039585,-487.01326893,0.00013698,2]
[385204041,1757685039594,-480.0,0.00013698,2]
[385204044,1757685039603,-488.17869395,0.00013698,2]
[385204046,1757685039612,-480.0,0.00013698,2]
[385204049,1757685039622,-480.0,0.00013698,2]
[385204052,1757685039632,-628.78393172,0.00013698,2]
[385204055,1757685039641,-480.0,0.00013698,2]
[385204058,1757685039651,-487.63608862,0.00013698,2]
[385204061,1757685039660,-488.21204967,0.00013698,2]
[385204064,1757685039670,-480.0,0.00013698,2]
[385204067,1757685039683,-480.0,0.00013698,2]
[385204069,1757685039692,-480.0,0.00013698,2]
[385204072,1757685039702,-480.0,0.00013698,2]
[385204075,1757685039711,-480.0,0.00013698,2]
[385204077,1757685039721,-480.0,0.00013698,2]
[385204079,1757685039730,-480.0,0.00013698,2]
[385204081,1757685039739,-480.0,0.00013698,2]
[385204083,1757685039748,-480.0,0.00013698,2]
[385204085,1757685039757,-480.0,0.00013698,2]
[385204087,1757685039766,-480.0,0.00013698,2]
[385204089,1757685039776,-480.0,0.00013698,2]
[385204091,1757685039787,-480.0,0.00013698,2]
[385204093,1757685039797,-480.0,0.00013698,2]
[385204095,1757685039807,-480.0,0.00013698,2]
[385204097,1757685039816,-480.0,0.00013698,2]
[385204099,1757685039825,-480.0,0.00013698,2]
[385204101,1757685039835,-482.66831065,0.00013698,2]
[385204103,1757685039844,-480.0,0.00013698,2]
[385204105,1757685039854,-480.0,0.00013698,2]
[385204107,1757685039863,-480.0,0.00013698,2]
[385204109,1757685039874,-480.0,0.00013698,2]
[385204111,1757685039883,-480.0,0.00013698,2]
[385204113,1757685039893,-480.0,0.00013698,2]
[385204115,1757685039903,-480.0,0.00013698,2]
[385204116,1757685039912,-480.0,0.00013698,2]
[385204118,1757685039921,-482.04299615,0.00013698,2]
[385204120,1757685039933,-480.0,0.00013698,2]
[385204122,1757685039942,-480.0,0.00013698,2]
[385204124,1757685039951,-480.0,0.00013698,2]
[385204126,1757685039961,-480.0,0.00013698,2]
[385204128,1757685039971,-480.0,0.00013698,2]
[385204130,1757685039980,-480.0,0.00013698,2]
[385204132,1757685039989,-480.0,0.00013698,2]
[385204134,1757685039998,-480.0,0.00013698,2]
[385204136,1757685040008,-480.0,0.00013698,2]
[385204138,1757685040017,-480.0,0.00013698,2]
[385204140,1757685040027,-480.0,0.00013698,2]
[385204142,1757685040036,-480.0,0.00013698,2]
[385204144,1757685040045,-480.0,0.00013698,2]
[385204146,1757685040054,-490.22059249,0.00013698,2]